Workbook

Sheet Sheet1
B1: Exer. manutenção - Simulação Automático
E2: exp
C3: Tempo bom Func.Vida | E3: Média | F3: 20 | G3: min | H3: max
C4: Temp Func. Interm. | F4: Uniforme | G4: 0 | H4: 5 | I4: Período Inspecção | K4: 8
C5: Custo Peça | E5: 400
C6: Custo Inspecção | E6: 200
C7: Custo/paragem/Av | E7: 2000
S8: C. Mensal | T8: C. Mensal | U8: C. Mensal | V8: C. Mensal
B9: Tempo | C9: Tipo | D9: Subst. | E9: TBF | F9: TBF | G9: Prox | H9: FTI | I9: FDI | J9: Prox. | K9: Próx. | L9: Próximo | M9: Tipo | N9: Nº | O9: Nº | P9: Nº | S9: Peças | T9: Inspecç | U9: Avarias | V9: Total
B10: dias | C10: Acontec. | D10: Peça? | E10: NPA | F10: dias | G10: T. Inter | H10: NPA | I10: dias | J10: Avaria | K10: Insp | L10: Acontec. | M10: Acontec. | N10: Peças | O10: Insp. | P10: Ava. | R10: D. Padrão | S10: =_xlfn.STDEV.P(S12:S111) -> 166.5695334 | T10: =_xlfn.STDEV.P(T12:T111) -> 46.5115347 | U10: 740.574993 | V10: 843.5131486
B11: 0 | C11: Inspecção | D11: Sim | E11: =RAND() -> 0.6769109178 | F11: =-$F$3*LN(E11) -> 7.804311969 | G11: =+B11+F11 -> 7.804311969 | H11: =RAND() -> 0.8263141494 | I11: =+$G$4+H11*($H$4-$G$4) -> 4.131570747 | J11: =+G11+I11 -> 11.93588272 | K11: =+B11+$K$4 -> 8 | L11: =MIN(J11,K11) -> 8 | M11: =IF(J11>L11,"Inspecção", "Avaria") -> Inspecção | N11: =IF(D11="Sim",1,0) -> 1 | O11: =IF(C11="Inspecção",1,0) -> 1 | P11: =IF(MC11="Avaria",1,0) -> 0 | R11: Média | S11: =AVERAGE(S12:S111) -> 565.3221626 | T11: =AVERAGE(T12:T111) -> 621.5693846 | U11: 2107.930723 | V11: 3294.82227
B12: =+L11 -> 8 | C12: Inspecção | D12: =IF(L11<G11,"Não","Sim") -> Sim | E12: =RAND() -> 0.3584973197 | F12: =-$F$3*LN(E12) -> 20.51668191 | G12: =+B12+F12 -> 28.51668191 | H12: =RAND() -> 0.012679451 | I12: =+$G$4+H12*($H$4-$G$4) -> 0.06339725499 | J12: =+G12+I12 -> 28.58007916 | K12: =+B12+$K$4 -> 16 | L12: =MIN(J12,K12) -> 16 | M12: =IF(J12>L12,"Inspecção", "Avaria") -> Inspecção | N12: =IF(D12="Sim",1,0) -> 1 | O12: =IF(C12="Inspecção",1,0) -> 1 | P12: =IF(C12="Avaria",1,0) -> 0 | S12: =+G43 -> 376.9157509 | T12: =+G44 -> 619.2187336 | U12: =+G45 -> 1615.353218 | V12: =+G46 -> 2611.487703
B13: 16 | C13: Inspecção | D13: =IF(L12<G12,"Não","Sim") -> Não | E13: 0.1919798382 | F13: =-$F$3*LN(E13) -> 33.00729843 | G13: 49.00729843 | H13: =RAND() -> 0.6712379238 | I13: =+$G$4+H13*($H$4-$G$4) -> 3.356189619 | J13: 52.36348805 | K13: 24 | L13: =MIN(J13,K13) -> 24 | M13: Inspecção | N13: 0 | O13: 1 | P13: 0 | R13: 1 | S13: 607.7549 | T13: 607.7549 | U13: 2734.89705 | V13: 3950.40685
B14: 24 | C14: Inspecção | D14: Não | E14: 0.08493456953 | F14: 49.31748178 | G14: 73.31748178 | H14: 0.7384238267 | I14: 3.692119134 | J14: 77.00960092 | K14: 32 | L14: 32 | M14: Inspecção | N14: 0 | O14: 1 | P14: 0 | R14: =1+R13 -> 2 | S14: 655.4773475 | T14: 625.6829226 | U14: 2383.553991 | V14: 3664.714261
B15: 32 | C15: Inspecção | D15: Não | E15: 0.6367058111 | F15: 9.028951302 | G15: 41.0289513 | H15: 0.3793623127 | I15: 1.896811564 | J15: 42.92576287 | K15: 40 | L15: 40 | M15: Inspecção | N15: 0 | O15: 1 | P15: 0 | R15: =1+R14 -> 3 | S15: 736.6478798 | T15: 566.6522153 | U15: 2549.934969 | V15: 3853.235064
B16: 40 | C16: Inspecção | D16: Não | E16: 0.6500237455 | F16: 8.614927705 | G16: 48.6149277 | H16: 0.4428389792 | I16: 2.214194896 | J16: 50.8291226 | K16: 48 | L16: 48 | M16: Inspecção | N16: 0 | O16: 1 | P16: 0 | R16: 4 | S16: 647.1121951 | T16: 588.2838137 | U16: 2647.277162 | V16: 3882.673171
B17: 48 | C17: Inspecção | D17: Não | E17: 0.7986722259 | F17: 4.496092956 | G17: 52.49609296 | H17: 0.4225075248 | I17: 2.112537624 | J17: 54.60863058 | K17: 56 | L17: 54.60863058 | M17: Avaria | N17: 0 | O17: 1 | P17: 0 | R17: 5 | S17: 566.8186887 | T17: 623.5005576 | U17: 1983.86541 | V17: 3174.184657
B18: 54.60863058 | C18: Avaria | D18: Sim | E18: 0.8013968318 | F18: 4.427980683 | G18: 59.03661126 | H18: 0.6433061313 | I18: 3.216530656 | J18: 62.25314192 | K18: 62.60863058 | L18: 62.25314192 | M18: Avaria | N18: 1 | O18: 0 | P18: 1 | R18: 6 | S18: 398.364912 | T18: 626.0020046 | U18: 1991.82456 | V18: 3016.191477
B19: 62.25314192 | C19: Avaria | D19: Sim | E19: 0.4051350803 | F19: 18.07069472 | G19: 80.32383664 | H19: 0.6009110844 | I19: 3.004555422 | J19: 83.32839206 | K19: 70.25314192 | L19: 70.25314192 | M19: Inspecção | N19: =IF(D19="Sim",1,0) -> 1 | O19: 0 | P19: =IF(C19="Avaria",1,0) -> 1 | R19: 7 | S19: 402.0896967 | T19: 660.5759303 | U19: 1723.241557 | V19: 2785.907184
B20: 70.25314192 | C20: Inspecção | D20: Não | E20: 0.8864054113 | F20: 2.411617163 | G20: 72.66475908 | H20: 0.9717876602 | I20: 4.858938301 | J20: 77.52369738 | K20: 78.25314192 | L20: 77.52369738 | M20: Avaria | N20: 0 | O20: 1 | P20: 0 | R20: 8 | S20: 348.1719186 | T20: 696.3438371 | U20: 1450.716327 | V20: 2495.232083
B21: 77.52369738 | C21: Avaria | D21: Sim | E21: 0.2541209641 | F21: 27.39889777 | G21: 104.9225952 | H21: 0.2097112537 | I21: 1.048556268 | J21: 105.9711514 | K21: 85.52369738 | L21: 85.52369738 | M21: Inspecção | N21: 1 | O21: 0 | P21: 1 | R21: 9 | S21: 627.7088961 | T21: 599.1766736 | U21: 2282.577804 | V21: 3509.463374
B22: 85.52369738 | C22: Inspecção | D22: Não | E22: 0.6124560953 | F22: 9.805560404 | G22: 95.32925779 | H22: 0.2671238291 | I22: 1.335619146 | J22: 96.66487693 | K22: 93.52369738 | L22: 93.52369738 | M22: Inspecção | N22: 0 | O22: 1 | P22: 0 | R22: 10 | S22: 476.8895522 | T22: 635.8527363 | U22: 1324.693201 | V22: 2437.435489
B23: 93.52369738 | C23: Inspecção | D23: Não | E23: 0.1973630204 | F23: 32.45421005 | G23: 125.9779074 | H23: 0.6274814103 | I23: 3.137407052 | J23: 129.1153145 | K23: 101.5236974 | L23: 101.5236974 | M23: Inspecção | N23: 0 | O23: 1 | P23: 0 | R23: 11 | S23: 440.9176735 | T23: 633.8191557 | U23: 1653.441276 | V23: 2728.178105
B24: 101.5236974 | C24: Inspecção | D24: Não | E24: 0.8327887567 | F24: 3.659505247 | G24: 105.1832026 | H24: 0.1943930732 | I24: 0.9719653658 | J24: 106.155168 | K24: 109.5236974 | L24: 106.155168 | M24: Avaria | N24: 0 | O24: 1 | P24: 0 | R24: 12 | S24: 272.8706656 | T24: 682.176664 | U24: 1091.482662 | V24: 2046.529992
B25: 106.155168 | C25: Avaria | D25: Sim | E25: 0.3982803237 | F25: 18.41198382 | G25: 124.5671518 | H25: 0.22334773 | I25: 1.11673865 | J25: 125.6838905 | K25: 114.155168 | L25: 114.155168 | M25: Inspecção | N25: 1 | O25: 0 | P25: 1 | R25: 13 | S25: 397.7118063 | T25: 653.3836818 | U25: 1704.47917 | V25: 2755.574658
B26: 114.155168 | C26: Inspecção | D26: Não | E26: 0.1428900316 | F26: 38.91359908 | G26: 153.0687671 | H26: 0.6983297696 | I26: 3.491648848 | J26: 156.5604159 | K26: 122.155168 | L26: 122.155168 | M26: Inspecção | N26: 0 | O26: 1 | P26: 0 | R26: 14 | S26: 465.1207017 | T26: 610.470921 | U26: 2325.603509 | V26: 3401.195131
B27: =+L26 -> 122.155168 | C27: =+M26 -> Inspecção | D27: =IF(L26<G26,"Não","Sim") -> Não | E27: 0.1573196338 | F27: 36.98951319 | G27: =+B27+F27 -> 159.1446812 | H27: 0.3955501173 | I27: 1.977750587 | J27: =+G27+I27 -> 161.1224318 | K27: =+B27+$K$4 -> 130.155168 | L27: =MIN(J27,K27) -> 130.155168 | M27: =IF(J27>L27,"Inspecção", "Avaria") -> Inspecção | N27: =IF(D27="Sim",1,0) -> 0 | O27: 1 | P27: 0 | R27: 15 | S27: 571.5901184 | T27: 628.7491302 | U27: 2000.565414 | V27: 3200.904663
B28: 130.155168 | C28: Inspecção | D28: Não | E28: 0.3008703887 | F28: 24.02151418 | G28: 154.1766822 | H28: 0.2842318809 | I28: 1.421159405 | J28: 155.5978416 | K28: 138.155168 | L28: 138.155168 | M28: Inspecção | N28: 0 | O28: 1 | P28: 0 | R28: 16 | S28: 740.506599 | T28: 586.2343909 | U28: 3085.444163 | V28: 4412.185152
B29: 138.155168 | C29: Inspecção | D29: Não | E29: 0.09940078842 | F29: 46.17190467 | G29: 184.3270727 | H29: 0.5272995825 | I29: 2.636497912 | J29: 186.9635706 | K29: 146.155168 | L29: 146.155168 | M29: Inspecção | N29: 0 | O29: 1 | P29: 0 | R29: 17 | S29: 560.5327969 | T29: 644.6127164 | U29: 1681.598391 | V29: 2886.743904
B30: 146.155168 | C30: Inspecção | D30: Não | E30: 0.05180560271 | F30: 59.2051395 | G30: 205.3603075 | H30: 0.6008524107 | I30: 3.004262053 | J30: 208.3645696 | K30: 154.155168 | L30: 154.155168 | M30: Inspecção | N30: 0 | O30: 1 | P30: 0 | R30: 18 | S30: 557.0930286 | T30: 640.6569829 | U30: 1671.279086 | V30: 2869.029097
B31: =+L30 -> 154.155168 | C31: =+M30 -> Inspecção | D31: =IF(L30<G30,"Não","Sim") -> Não | E31: 0.8952193346 | F31: 2.213730483 | G31: =+B31+F31 -> 156.3688985 | H31: 0.8097302568 | I31: 4.048651284 | J31: =+G31+I31 -> 160.4175498 | K31: =+B31+$K$4 -> 162.155168 | L31: =MIN(J31,K31) -> 160.4175498 | M31: =IF(J31>L31,"Inspecção", "Avaria") -> Avaria | N31: =IF(D31="Sim",1,0) -> 0 | O31: 1 | P31: 0 | R31: 19 | S31: 635.0127434 | T31: 606.1485278 | U31: 2309.137249 | V31: 3550.29852
B32: 160.4175498 | C32: Avaria | D32: Sim | E32: 0.5820625249 | F32: 10.82354812 | G32: 171.2410979 | H32: 0.9644247858 | I32: 4.822123929 | J32: 176.0632218 | K32: 168.4175498 | L32: 168.4175498 | M32: Inspecção | N32: 1 | O32: 0 | P32: 1 | R32: 20 | S32: 514.0369359 | T32: 656.8249736 | U32: 1713.456453 | V32: 2884.318363
B33: 168.4175498 | C33: Inspecção | D33: Não | E33: 0.729851978 | F33: 6.298270706 | G33: 174.7158205 | H33: 0.02913080248 | I33: 0.1456540124 | J33: 174.8614745 | K33: 176.4175498 | L33: 174.8614745 | M33: Avaria | N33: 0 | O33: 1 | P33: 0 | R33: 21 | S33: 436.2633692 | T33: 654.3950538 | U33: 1363.323029 | V33: 2453.981452
B34: 174.8614745 | C34: Avaria | D34: Sim | E34: 0.4349677175 | F34: 16.64966927 | G34: 191.5111437 | H34: 0.8649168328 | I34: 4.324584164 | J34: 195.8357279 | K34: 182.8614745 | L34: 182.8614745 | M34: Inspecção | N34: 1 | O34: 0 | P34: 1 | R34: 22 | S34: 557.1321524 | T34: 612.8453677 | U34: 1949.962533 | V34: 3119.940054
B35: 182.8614745 | C35: Inspecção | D35: Não | E35: 0.0521618733 | F35: 59.06806895 | G35: 241.9295434 | H35: 0.5880626441 | I35: 2.94031322 | J35: 244.8698567 | K35: 190.8614745 | L35: 190.8614745 | M35: Inspecção | N35: 0 | O35: 1 | P35: 0 | R35: 23 | S35: 325.5549231 | T35: 623.9802692 | U35: 1627.774615 | V35: 2577.309808
B36: 190.8614745 | C36: Inspecção | D36: Não | E36: 0.2290750581 | F36: 29.47411129 | G36: 220.3355858 | H36: 0.8419779985 | I36: 4.209889992 | J36: 224.5454758 | K36: 198.8614745 | L36: 198.8614745 | M36: Inspecção | N36: 0 | O36: 1 | P36: 0 | R36: 24 | S36: 505.3124378 | T36: 617.6040907 | U36: 1965.103925 | V36: 3088.020453
B37: 198.8614745 | C37: Inspecção | D37: Não | E37: 0.3612509865 | F37: 20.36364617 | G37: 219.2251207 | H37: 0.2849898115 | I37: 1.424949057 | J37: 220.6500697 | K37: 206.8614745 | L37: 206.8614745 | M37: Inspecção | N37: 0 | O37: 1 | P37: 0 | R37: 25 | S37: 565.5174701 | T37: 650.3450906 | U37: 1696.55241 | V37: 2912.414971
B38: 206.8614745 | C38: Inspecção | D38: Não | E38: 0.06277714454 | F38: 55.36328424 | G38: 262.2247587 | H38: 0.9758736121 | I38: 4.879368061 | J38: 267.1041268 | K38: 214.8614745 | L38: 214.8614745 | M38: Inspecção | N38: 0 | O38: 1 | P38: 0 | R38: 26 | S38: 584.9305126 | T38: 672.6700895 | U38: 1754.791538 | V38: 3012.39214
B39: 214.8614745 | C39: Inspecção | D39: Não | E39: 0.5885790084 | F39: 10.60088215 | G39: 225.4623566 | H39: 0.9777867804 | I39: 4.888933902 | J39: 230.3512905 | K39: 222.8614745 | L39: 222.8614745 | M39: Inspecção | N39: 0 | O39: 1 | P39: 0 | R39: 27 | S39: 737.3183505 | T39: 614.4319588 | U39: 2764.943815 | V39: 4116.694124
B40: 222.8614745 | C40: Inspecção | D40: Não | E40: 0.731424045 | F40: 6.255237969 | G40: 229.1167125 | H40: 0.3590604863 | I40: 1.795302432 | J40: 230.9120149 | K40: 230.8614745 | L40: 230.8614745 | M40: Inspecção | N40: 0 | O40: 1 | P40: 0 | R40: 28 | S40: 585.0360589 | T40: 585.0360589 | U40: 2632.662265 | V40: 3802.734383
N41: =SUM(N12:N40) -> 7 | O41: =SUM(O12:O40) -> 23 | P41: 6 | R41: 29 | S41: 679.0157782 | T41: 594.138806 | U41: 2263.385927 | V41: 3536.540512
E42: Total | F42: Dia | G42: Mês | R42: 30 | S42: 479.2997919 | T42: 659.0372138 | U42: 2096.93659 | V42: 3235.273595
B43: Custo das peças | E43: =N41*E5 -> 2800 | F43: =+E43/$B$40 -> 12.56385836 | G43: =+F43*30 -> 376.9157509 | I43: Intervalo de Confiança a | L43: 0.95 | R43: 31 | S43: 465.2164728 | T43: 639.6726501 | U43: 2035.322068 | V43: 3140.211191
B44: Custo das Inspecções | E44: =+O41*E6 -> 4600 | F44: =+E44/$B$40 -> 20.64062445 | G44: =+F44*30 -> 619.2187336 | J44: Custos Mensais Totais | R44: 32 | S44: 391.0390716 | T44: 642.4213319 | U44: 1675.881735 | V44: 2709.342139
B45: Custos das Avarias | E45: =+E7*P41 -> 12000 | F45: 53.84510727 | G45: 1615.353218 | R45: 33 | S45: 610.0346944 | T45: 640.5364291 | U45: 2440.138778 | V45: 3690.709901
B46: Custo Total | E46: =+E43+E44+E45 -> 19400 | F46: 87.04959009 | G46: 2611.487703 | I46: Limite Inferior | L46: Limite Superior | R46: 34 | S46: 493.0418209 | T46: 629.9978823 | U46: 1643.472736 | V46: 2766.51244
I47: =+$V$11-$V$10/SQRT($R$111+1)*TINV(1-$L$43,$R$111) -> 3127.450961 | L47: =+$V$11+$V$10/SQRT($R$111+1)*TINV(1-$L$43,$R$111) -> 3462.193579 | R47: 35 | S47: 781.1028252 | T47: 570.8059107 | U47: 3004.241636 | V47: 4356.150372
R48: 36 | S48: 454.7909086 | T48: 653.7619311 | U48: 1705.465907 | V48: 2814.018747
R49: 37 | S49: 767.3366975 | T49: 575.5025231 | U49: 3516.959864 | V49: 4859.799084
R50: 38 | S50: 589.3411472 | T50: 589.3411472 | U50: 2652.035163 | V50: 3830.717457
R51: 39 | S51: 747.0601318 | T51: 603.3947219 | U51: 2298.646559 | V51: 3649.101413
R52: 40 | S52: 735.5305136 | T52: 582.2949899 | U52: 3064.710473 | V52: 4382.535977
R53: 41 | S53: 622.3752715 | T53: 622.3752715 | U53: 1980.284955 | V53: 3225.035498
R54: 42 | S54: 383.721913 | T54: 657.8089938 | U54: 1370.435404 | V54: 2411.96631
R55: 43 | S55: 267.0129252 | T55: 694.2336055 | U55: 801.0387756 | V55: 1762.285306
R56: 44 | S56: 683.0086469 | T56: 569.1738724 | U56: 2561.282426 | V56: 3813.464945
R57: 45 | S57: 786.4365463 | T57: 574.70363 | U57: 3024.755947 | V57: 4385.896123
R58: 46 | S58: 508.3922391 | T58: 564.8802657 | U58: 2541.961196 | V58: 3615.2337
R59: 47 | S59: 926.5154335 | T59: 586.7931079 | U59: 3088.384778 | V59: 4601.69332
R60: 48 | S60: 752.0963933 | T60: 595.4096447 | U60: 3133.734972 | V60: 4481.24101
R61: 49 | S61: 659.0616977 | T61: 629.1043478 | U61: 2396.587992 | V61: 3684.754037
R62: 50 | S62: 508.2960225 | T62: 621.2506942 | U62: 1976.706754 | V62: 3106.253471
R63: 51 | S63: 379.970482 | T63: 651.3779692 | U63: 1357.037436 | V63: 2388.385887
R64: 52 | S64: 698.4412106 | T64: 582.0343422 | U64: 2619.15454 | V64: 3899.630092
R65: 53 | S65: 477.6695004 | T65: 656.7955631 | U65: 2089.804064 | V65: 3224.269128
R66: 54 | S66: 517.3570937 | T66: 661.0673975 | U66: 1724.523646 | V66: 2902.948137
R67: 55 | S67: 487.0836896 | T67: 649.4449195 | U67: 1353.010249 | V67: 2489.538858
R68: 56 | S68: 161.2525316 | T68: 698.7609701 | U68: 806.2626578 | V68: 1666.276159
R69: 57 | S69: 452.8296595 | T69: 622.6407818 | U69: 1981.12976 | V69: 3056.600202
R70: 58 | S70: 668.8866277 | T70: 608.0787525 | U70: 2736.354386 | V70: 4013.319766
R71: 59 | S71: 609.2588288 | T71: 636.9524119 | U71: 1661.614988 | V71: 2907.826228
R72: 60 | S72: 524.4764699 | T72: 641.0267965 | U72: 2039.630716 | V72: 3205.133983
R73: 61 | S73: 269.4442979 | T73: 673.6107446 | U73: 1077.777191 | V73: 2020.832234
R74: =1+R73 -> 62 | S74: 548.9462605 | T74: 686.1828256 | U74: 1097.892521 | V74: 2333.021607
R75: 63 | S75: 377.0015223 | T75: 673.217004 | U75: 1077.147206 | V75: 2127.365733
R76: 64 | S76: 505.2668948 | T76: 645.6188101 | U76: 1684.222983 | V76: 2835.108688
R77: 65 | S77: 610.333137 | T77: 638.0755523 | U77: 1664.544919 | V77: 2912.953608
R78: 66 | S78: 648.4336301 | T78: 589.4851183 | U78: 2652.683032 | V78: 3890.601781
R79: =1+R78 -> 67 | S79: 698.7724866 | T79: 553.1948853 | U79: 2911.552028 | V79: 4163.5194
R80: 68 | S80: 330.0814117 | T80: 687.6696077 | U80: 1100.271372 | V80: 2118.022392
R81: 69 | S81: 765.801767 | T81: 574.3513253 | U81: 3509.924765 | V81: 4850.077858
R82: 70 | S82: 565.6378204 | T82: 565.6378204 | U82: 2545.370192 | V82: 3676.645833
R83: 71 | S83: 331.0559506 | T83: 717.2878929 | U83: 827.6398764 | V83: 1875.98372
R84: 72 | S84: 926.9077421 | T84: 463.4538711 | U84: 3765.562702 | V84: 5155.924316
R85: 73 | S85: 612.4202908 | T85: 556.7457189 | U85: 2505.355735 | V85: 3674.521745
R86: 74 | S86: 588.7573859 | T86: 618.1952552 | U86: 2355.029544 | V86: 3561.982185
R87: 75 | S87: 534.6475191 | T87: 594.052799 | U87: 2673.237595 | V87: 3801.937914
R88: 76 | S88: 215.7982312 | T88: 701.3442515 | U88: 809.2433671 | V88: 1726.38585
R89: 77 | S89: 350.4934271 | T89: 700.9868541 | U89: 1460.389279 | V89: 2511.869561
R90: 78 | S90: 529.8173881 | T90: 688.7626046 | U90: 794.7260822 | V90: 2013.306075
R91: 79 | S91: 818.568527 | T91: 526.2226245 | U91: 3215.804927 | V91: 4560.596079
R92: 80 | S92: 666.9966056 | T92: 606.3605506 | U92: 2728.622478 | V92: 4001.979634
R93: 81 | S93: 732.4445076 | T93: 563.418852 | U93: 2535.384834 | V93: 3831.248194
R94: 82 | S94: 640.6183331 | T94: 553.2612877 | U94: 2911.901514 | V94: 4105.781135
R95: 83 | S95: 619.1143676 | T95: 619.1143676 | U95: 2786.014654 | V95: 4024.243389
R96: 84 | S96: 853.4365062 | T96: 579.1176292 | U96: 3047.987522 | V96: 4480.541658
R97: 85 | S97: 694.3936854 | T97: 568.140288 | U97: 3471.968427 | V97: 4734.5024
R98: 86 | S98: 558.6218311 | T98: 558.6218311 | U98: 2513.79824 | V98: 3631.041902
R99: 87 | S99: 1055.901213 | T99: 465.8387706 | U99: 4347.828526 | V99: 5869.56851
R100: 88 | S100: 522.9110826 | T100: 639.1135453 | U100: 2033.543099 | V100: 3195.567727
R101: 89 | S101: 603.579271 | T101: 633.7582345 | U101: 2414.317084 | V101: 3651.65459
R102: 90 | S102: 268.3950232 | T102: 697.8270604 | U102: 805.1850696 | V102: 1771.407153
R103: 91 | S103: 622.4149192 | T103: 622.4149192 | U103: 1980.411107 | V103: 3225.240945
R104: 92 | S104: 643.5815267 | T104: 616.7656298 | U104: 1608.953817 | V104: 2869.300973
R105: 93 | S105: 640.6606184 | T105: 694.0490033 | U105: 800.8257731 | V105: 2135.535395
R106: =1+R105 -> 94 | S106: 680.5283533 | T106: 623.8176572 | U106: 1984.874364 | V106: 3289.220374
R107: =1+R106 -> 95 | S107: 564.7969929 | T107: 593.0368425 | U107: 2259.187972 | V107: 3417.021807
R108: 96 | S108: 382.96189 | T108: 656.5060971 | U108: 1367.721036 | V108: 2407.189023
R109: 97 | S109: 382.0515629 | T109: 654.9455365 | U109: 1364.469868 | V109: 2401.466967
R110: 98 | S110: 1000.277569 | T110: 593.9148067 | U110: 3125.867403 | V110: 4720.059779
R111: 99 | S111: 606.9815893 | T111: 634.5716616 | U111: 1655.404335 | V111: 2896.957585

Sheet Sheet2

Sheet Sheet3
